fUST/lending_fUST_20240302
["ID","MTS","AMOUNT","RATE_DAILY","PERIOD"]
[316041260,1709333441614,-1288.68,0.000207,2]
[316041261,1709333441623,-1288.68,0.000207,2]
[316041262,1709333441632,-975.26,0.000207,2]
[316041263,1709333441641,-1078.41,0.000207,2]
[316041264,1709333441650,-1288.68,0.000207,2]
[316041265,1709333441660,-975.26,0.000207,2]
[316041266,1709333441669,-1078.41,0.000207,2]
[316041267,1709333441679,-1288.68,0.000207,2]
[316041268,1709333441688,-975.26,0.000207,2]
[316041269,1709333441696,-1078.41,0.000207,2]
[316041270,1709333441705,-1288.68,0.000207,2]
[316041271,1709333441714,-975.26,0.000207,2]
[316041272,1709333441723,-1078.41,0.000207,2]
[316041273,1709333441733,-975.26,0.000207,2]
[316041274,1709333441742,-1078.41,0.000207,2]
[316041275,1709333441754,-975.26,0.000207,2]
[316041276,1709333441766,-1078.41,0.000207,2]
[316041277,1709333441778,-500.0,0.000207,2]
[316041278,1709333441790,-467.56881791,0.000207,2]
[316041279,1709333441802,-50000.0,0.00020701,2]
[316041280,1709333441814,-50000.0,0.00020701,2]
[316041281,1709333441824,-50000.0,0.00020701,2]
[316041282,1709333441834,-80212.25808358,0.00020701,2]
[316041283,1709333441846,-9734.35837801,0.00020701,4]
[316041284,1709333441857,-1389.46676319,0.00020701,4]
[316041285,1709333441869,-526.13,0.00020717,2]
[316041286,1709333441881,-659.35,0.00020717,2]
[316041287,1709333441893,-500.0,0.00020717,2]
[316041290,1709333441907,-1288.68,0.00020717,2]
[316041292,1709333441919,-975.26,0.00020717,2]
[316041294,1709333441930,-1078.41,0.00020717,2]
[316041297,1709333441942,-964.49,0.00020718,2]
[316041299,1709333441953,-964.49,0.00020718,2]
[316041301,1709333441964,-569.48293923,0.00020718,2]
[316041303,1709333441974,-500.0,0.00020736,2]
[316041305,1709333441984,-975.26,0.00020736,2]
[316041307,1709333441996,-1078.41,0.00020736,2]
[316041310,1709333442008,-29757.61525027,0.00020737,3]
[316041312,1709333442019,-216.49588714,0.00020739,2]
[316041314,1709333442030,-764.94876614,0.00020739,2]
[316041316,1709333442041,-7738.91100264,0.00020745,2]
[316041319,1709333442051,-1451.04581299,0.00020748,2]
[316041321,1709333442062,-620.76991985,0.00020803,2]
[316041323,1709333442074,-526.13,0.00020889,2]
[316041324,1709333442085,-659.35,0.00020889,2]
[316041325,1709333442096,-1288.68,0.00020889,2]
[316041327,1709333442106,-8234.00193465,0.0002089,2]
[316041329,1709333442115,-862.78718072,0.00020968,2]
[316041331,1709333442125,-300.0,0.00021,9]
[316041333,1709333442135,-1005.62,0.0002108,2]
[316041334,1709333442148,-500.0,0.0002108,2]
[316041335,1709333442161,-1252.97,0.0002108,2]
[316041336,1709333442172,-2250.0,0.0002108,2]
[316041337,1709333442183,-866.25,0.0002108,2]
[316041338,1709333442194,-977.71,0.0002108,2]
[316041339,1709333442205,-630.67326243,0.0002108,2]
[316041340,1709333442216,-500.0,0.00021081,2]
[316041341,1709333442227,-1252.97,0.00021081,2]
[316041342,1709333442238,-2250.0,0.00021081,2]
[316041343,1709333442249,-866.25,0.00021081,2]
[316041344,1709333442260,-977.71,0.00021081,2]
[316041345,1709333442272,-1005.62,0.0002113,2]
[316041346,1709333442282,-975.26,0.00021172,2]
[316041347,1709333442294,-2612.3284,0.00021173,7]
[316041348,1709333442306,-862.78718072,0.00021334,2]
[316041349,1709333442317,-862.78718072,0.00021701,2]
[316041350,1709333442328,-620.03849599,0.00021843,2]
[316041351,1709333442340,-1721.60572516,0.000219,2]
[316041352,1709333442351,-400.24472666,0.00021918,2]
[316041353,1709333442363,-157.14741337,0.00022,2]
[316041354,1709333442373,-327.22275751,0.0002206,2]
[316041355,1709333442383,-526.13,0.00022062,2]
[316041356,1709333442392,-659.35,0.00022062,2]
[316041357,1709333442403,-1288.68,0.00022062,2]
[316041358,1709333442412,-1724.21211612,0.00022063,2]
[316041359,1709333442423,-862.78718072,0.00022067,2]
[316041360,1709333442434,-153.0,0.00022082,2]
[316041361,1709333442444,-401.4017028,0.00022356,2]
[316041362,1709333442455,-153.0,0.00022356,2]
[316041363,1709333442465,-306.0,0.00022356,2]
[316041364,1709333442476,-200.7008514,0.00022356,2]
[316041365,1709333442487,-200.7008514,0.00022356,2]
[316041366,1709333442499,-153.0,0.00022356,2]
[316041367,1709333442510,-153.0,0.00022356,2]
[316041368,1709333442519,-200.7008514,0.00022356,2]
[316041369,1709333442530,-153.0,0.00022356,2]
[316041370,1709333442539,-200.7008514,0.00022356,2]
[316041371,1709333442551,-200.7008514,0.00022378,2]
[316041372,1709333442561,-153.0,0.00022378,2]
[316041373,1709333442571,-862.78718072,0.00022434,2]
[316041374,1709333442582,-493.069484,0.000225,10]
[316041375,1709333442593,-862.78718072,0.000228,2]
[316041376,1709333442603,-2788.91634066,0.00023,2]
[316041377,1709333442613,-1753.86042697,0.00023,2]
[316041378,1709333442624,-399.38338015,0.00023076,2]
[316041379,1709333442634,-1078.41,0.00023076,2]
[316041380,1709333442644,-1005.62,0.00023077,2]
[316041381,1709333442655,-1005.62,0.00023077,2]
[316041382,1709333442666,-1005.62,0.00023077,2]
[316041383,1709333442676,-526.13,0.00023077,2]
[316041384,1709333442687,-526.13,0.00023077,2]
[316041385,1709333442698,-526.13,0.00023077,2]
[316041386,1709333442708,-659.35,0.00023077,2]
[316041387,1709333442719,-659.35,0.00023077,2]
[316041388,1709333442729,-659.35,0.00023077,2]
[316041389,1709333442740,-1288.68,0.00023077,2]
[316041390,1709333442751,-1288.68,0.00023077,2]
[316041391,1709333442761,-1288.68,0.00023077,2]
[316041392,1709333442771,-975.26,0.00023077,2]
[316041393,1709333442782,-1078.41,0.00023077,2]
[316041394,1709333442791,-975.26,0.00023077,2]
[316041395,1709333442802,-1078.41,0.00023077,2]
[316041396,1709333442812,-975.26,0.00023077,2]
[316041397,1709333442823,-1078.41,0.00023077,2]
[316041398,1709333442834,-975.26,0.00023077,2]
[316041399,1709333442844,-1078.41,0.00023077,2]
[316041400,1709333442854,-1078.63005205,0.00023077,2]
[316041401,1709333442864,-975.43107986,0.00023077,2]
[316041402,1709333442875,-1187.61,0.00023077,2]
[316041403,1709333442885,-1187.61,0.00023077,2]
[316041404,1709333442896,-1187.61,0.00023077,2]
[316041405,1709333442907,-1187.61,0.00023077,2]
[316041406,1709333443028,-1187.61,0.00023077,2]
[316041407,1709333443039,-1187.61,0.00023077,2]
[316041408,1709333443048,-1187.61,0.00023077,2]
[316041409,1709333443058,-1187.61,0.00023077,2]
[316041410,1709333443067,-1187.64,0.00023077,2]
[316041411,1709333443076,-118696.88311872,0.00023078,2]
[316041412,1709333443085,-862.78718072,0.00023167,2]
[316041413,1709333443095,-217.9000002,0.00023178,2]
[316041414,1709333443105,-200.7008514,0.00023178,2]
[316041415,1709333443114,-153.0,0.00023178,2]
[316041416,1709333443123,-200.7008514,0.00023178,2]
[316041417,1709333443133,-153.0,0.00023178,2]
[316041418,1709333443142,-200.7008514,0.00023178,2]
[316041419,1709333443151,-200.7008514,0.00023178,2]
[316041420,1709333443161,-153.0,0.00023178,2]
[316041421,1709333443170,-202.243666,0.00023178,2]
[316041422,1709333443179,-153.0,0.00023178,2]
[316041423,1709333443188,-153.0,0.00023178,2]
[316041424,1709333443197,-153.0,0.00023178,2]
[316041425,1709333443206,-306.0,0.00023178,2]
[316041426,1709333443216,-153.0,0.00023178,2]
[316041427,1709333443225,-257.4123915,0.00023178,2]
[316041428,1709333443234,-287.6731672,0.00023178,2]
[316041429,1709333443243,-153.0,0.00023178,2]
[316041430,1709333443251,-153.0,0.00023178,2]
[316041431,1709333443261,-153.0,0.00023178,2]
[316041432,1709333443270,-153.0,0.00023178,2]
[316041433,1709333443280,-200.7008514,0.00023178,2]
[316041434,1709333443289,-10257.97,0.00023181,2]
[316041435,1709333443298,-5000.0,0.00023183,5]
[316041436,1709333443307,-5000.0,0.00023184,5]
[316041437,1709333443316,-5000.0,0.00023184,5]
[316041438,1709333443325,-1000.0,0.0002319,5]
[316041439,1709333443334,-1000.0,0.00023201,5]
[316041440,1709333443344,-272.22,0.000234,7]
[316041441,1709333443354,-862.78718072,0.00023533,2]
[316041442,1709333443363,-526.13,0.00023598,2]
[316041443,1709333443372,-526.13,0.00023598,2]
[316041444,1709333443381,-526.13,0.00023598,2]
[316041445,1709333443390,-526.13,0.00023598,2]
[316041446,1709333443399,-526.2,0.00023598,2]
[316041447,1709333443409,-659.35,0.00023598,2]
[316041448,1709333443419,-659.35,0.00023598,2]
[316041449,1709333443428,-659.35,0.00023598,2]
[316041450,1709333443438,-659.35,0.00023598,2]
[316041451,1709333443446,-659.48,0.00023598,2]
[316041452,1709333443456,-1288.68,0.00023598,2]
[316041453,1709333443465,-1288.68,0.00023598,2]
[316041454,1709333443474,-1288.68,0.00023598,2]
[316041455,1709333443483,-1288.68,0.00023598,2]
[316041457,1709333443492,-1288.69245189,0.00023598,2]
[316041459,1709333443502,-6443.73272026,0.00023599,5]
[316041461,1709333443514,-234.5338,0.00023879,2]
[316041462,1709333443523,-1005.62,0.00023887,2]
[316041464,1709333443532,-1125.54394645,0.00023888,5]
[316041466,1709333443542,-964.49,0.00023897,2]
[316041468,1709333443551,-964.49,0.00023897,2]
[316041470,1709333443560,-964.49,0.00023897,2]
[316041472,1709333443569,-964.49,0.00023897,2]
[316041474,1709333443578,-964.66682508,0.00023897,2]
[316041475,1709333443588,-1005.62,0.00023898,2]
[316041476,1709333443598,-1252.97,0.00023898,2]
[316041478,1709333443608,-2250.0,0.00023898,2]
[316041480,1709333443616,-866.25,0.00023898,2]
[316041482,1709333443625,-977.71,0.00023898,2]
[316041484,1709333443634,-862.78718072,0.000239,2]
[316041486,1709333443643,-1005.62,0.00023994,2]
[316041488,1709333443653,-1005.62,0.00023994,2]
[316041490,1709333443663,-1005.62,0.00023994,2]
[316041492,1709333443672,-1005.62,0.00023994,2]
[316041494,1709333443682,-1005.85,0.00023994,2]
[316041496,1709333443691,-1252.97,0.00023997,2]
[316041498,1709333443701,-10257.97,0.00023997,2]
[316041499,1709333443709,-2250.0,0.00023997,2]
[316041501,1709333443719,-1187.64,0.00023997,2]
[316041503,1709333443728,-866.25,0.00023997,2]
[316041505,1709333443737,-977.71,0.00023997,2]
[316041507,1709333443746,-400.0,0.00023998,2]
[316041509,1709333443756,-11178.30135023,0.00023998,2]
[316041512,1709333443767,-155.22494037,0.00023998,2]
[316041513,1709333443776,-155.0558201,0.00023998,2]
[316041515,1709333443785,-155.2833993,0.00023998,2]
[316041517,1709333443796,-262.13577343,0.00023998,2]
[316041519,1709333443806,-173.93222042,0.00023998,2]
[316041521,1709333443815,-508.95946117,0.00023998,2]
[316041523,1709333443824,-1171.69564882,0.00023998,2]
[316041525,1709333443834,-523.71030091,0.00023998,3]
[316041527,1709333443843,-812.22817838,0.00023998,2]
[316041529,1709333443852,-207.97712337,0.00023998,2]
[316041531,1709333443862,-198.32516916,0.00023998,2]
[316041533,1709333443872,-159.87982714,0.00023998,2]
[316041535,1709333443881,-155.25921865,0.00023998,2]
[316041537,1709333443891,-285.52119037,0.00023998,2]
[316041539,1709333443901,-324.72973504,0.00023998,2]
[316041542,1709333443912,-162.11854936,0.00023998,2]
[316041543,1709333443922,-260.50442355,0.00023998,2]
[316041544,1709333443932,-201.7351925,0.00023998,2]
[316041546,1709333443941,-200.85706016,0.00023998,2]
[316041547,1709333443950,-1091.1082286,0.00023998,5]
[316041548,1709333443959,-202.60745563,0.00023998,2]
[316041550,1709333443968,-160.40689308,0.00023998,2]
[316041552,1709333443977,-176.94616105,0.00023998,2]
[316041554,1709333443986,-240.49886462,0.00023998,2]
[316041556,1709333443995,-595.5942201,0.00023998,2]
[316041558,1709333444005,-200.0,0.00023998,2]
[316041560,1709333444014,-562.47634038,0.00023998,2]
[316041562,1709333444023,-280.37029672,0.00023998,2]
[316041564,1709333444032,-263.31692282,0.00023998,2]
[316041566,1709333444042,-1654.30348637,0.00023998,2]
[316041568,1709333444051,-429.41243131,0.00023998,2]
[316041570,1709333444059,-200.54373759,0.00023998,2]
[316041572,1709333444069,-219.95258249,0.00023998,2]
[316041574,1709333444078,-282.54840723,0.00023998,2]
[316041576,1709333444088,-206.11586222,0.00023998,2]
[316041577,1709333444097,-200.01171087,0.00023998,2]
[316041579,1709333444106,-197.5903061,0.00023998,2]
[316041581,1709333444115,-160.8702495,0.00023998,2]
[316041583,1709333444124,-179.22431201,0.00023998,2]
[316041585,1709333444134,-300.22703876,0.00023998,2]
[316041587,1709333444142,-205.9203372,0.00023998,2]
[316041589,1709333444151,-1992.97014433,0.00023998,2]
[316041591,1709333444161,-371.14057692,0.00023998,2]
[316041593,1709333444170,-300.89577802,0.00023998,2]
[316041595,1709333444179,-247.69144409,0.00023998,2]
[316041597,1709333444188,-155.08219356,0.00023998,2]
[316041599,1709333444198,-169.08281547,0.00023998,2]
[316041601,1709333444207,-158.82433248,0.00023998,2]
[316041603,1709333444217,-295.87885382,0.00023998,2]
[316041605,1709333444226,-10098.67327328,0.00023998,2]
[316041607,1709333444234,-441.36557175,0.00023998,2]
[316041609,1709333444243,-508.84911227,0.00023998,2]
[316041611,1709333444252,-211.29666627,0.00023998,2]
[316041613,1709333444262,-263.21964131,0.00023998,7]
[316041615,1709333444271,-478.73760126,0.00023998,2]
[316041617,1709333444280,-300.2820096,0.00023998,2]
[316041619,1709333444289,-155.07133281,0.00023998,2]
[316041621,1709333444298,-205.34317386,0.00023998,2]
[316041623,1709333444307,-181.85299433,0.00023998,2]
[316041625,1709333444316,-185.40185691,0.00023998,2]
[316041627,1709333444325,-1405.80312036,0.00023998,2]
[316041629,1709333444334,-298.82206259,0.00023998,2]
[316041630,1709333444343,-267.21087934,0.00023998,2]
[316041632,1709333444352,-237.55164317,0.00023998,2]
[316041634,1709333444362,-282.52764566,0.00023998,2]
[316041636,1709333444371,-192.42679543,0.00023998,2]
[316041638,1709333444380,-198.6077684,0.00023998,2]
[316041640,1709333444390,-298.61808289,0.00023998,2]
[316041642,1709333444399,-387.63160275,0.00023998,2]
[316041644,1709333444409,-1252.97,0.00023998,2]
[316041646,1709333444418,-1252.97,0.00023998,2]
[316041648,1709333444428,-1252.97,0.00023998,2]
[316041650,1709333444437,-1252.97,0.00023998,2]
[316041652,1709333444446,-1252.97,0.00023998,2]
[316041654,1709333444455,-10257.97,0.00023998,2]
[316041656,1709333444464,-10257.97,0.00023998,2]
[316041658,1709333444474,-10257.97,0.00023998,2]
[316041660,1709333444484,-10257.97,0.00023998,2]
[316041662,1709333444493,-2250.0,0.00023998,2]
[316041664,1709333444505,-2250.0,0.00023998,2]
[316041666,1709333444518,-2250.0,0.00023998,2]
[316041668,1709333444527,-2250.0,0.00023998,2]
[316041670,1709333444536,-2250.0,0.00023998,2]
[316041672,1709333444545,-155.11478494,0.00023998,2]
[316041674,1709333444555,-866.25,0.00023998,2]
[316041676,1709333444564,-866.25,0.00023998,2]
[316041678,1709333444573,-866.25,0.00023998,2]
[316041680,1709333444582,-866.25,0.00023998,2]
[316041682,1709333444592,-866.25,0.00023998,2]
[316041684,1709333444601,-224.33420636,0.00023998,2]
[316041685,1709333444610,-977.71,0.00023998,2]
[316041686,1709333444618,-977.71,0.00023998,2]
[316041687,1709333444627,-977.71,0.00023998,2]
[316041688,1709333444636,-977.71,0.00023998,2]
[316041689,1709333444645,-977.71,0.00023998,2]
[316041690,1709333444656,-500.0,0.00023998,2]
[316041691,1709333444665,-500.0,0.00023998,2]
[316041692,1709333444674,-627.73760575,0.00023998,2]
[316041693,1709333444684,-500.0,0.00023998,2]
[316041694,1709333444692,-500.0,0.00023998,2]
[316041695,1709333444701,-500.0,0.00023998,2]
[316041696,1709333444710,-500.0,0.00023998,2]
[316041697,1709333444719,-500.0,0.00023998,2]
[316041698,1709333444728,-500.0,0.00023998,2]
[316041699,1709333444737,-500.0,0.00023998,2]
[316041700,1709333444746,-500.0,0.00023998,2]
[316041701,1709333444755,-433.00418666,0.00023998,2]
[316041702,1709333444765,-190.66074134,0.00023998,2]
[316041703,1709333444774,-500.0,0.00023998,2]
[316041704,1709333444783,-500.0,0.00023998,2]
[316041705,1709333444792,-500.0,0.00023998,2]
[316041706,1709333444801,-500.0,0.00023998,2]
[316041707,1709333444810,-500.0,0.00023998,2]
[316041708,1709333444819,-500.0,0.00023998,2]
[316041709,1709333444828,-500.0,0.00023998,2]
[316041710,1709333444836,-500.0,0.00023998,2]
[316041711,1709333444846,-500.0,0.00023998,2]
[316041712,1709333444854,-500.0,0.00023998,2]
[316041713,1709333444863,-1252.97,0.00023999,2]
[316041714,1709333444872,-1252.97,0.00023999,2]
[316041716,1709333444882,-1252.97,0.00023999,2]
[316041718,1709333444891,-1252.97,0.00023999,2]
[316041720,1709333444901,-1252.97,0.00023999,2]
[316041722,1709333444913,-1252.97,0.00023999,2]
[316041724,1709333444922,-1252.97,0.00023999,2]
[316041726,1709333444932,-1252.97,0.00023999,2]
[316041728,1709333444941,-1252.97,0.00023999,2]
[316041730,1709333444951,-1252.97,0.00023999,2]
[316041732,1709333444960,-1252.97,0.00023999,2]
[316041734,1709333444969,-1252.97,0.00023999,2]
[316041736,1709333444979,-1252.97,0.00023999,2]
[316041738,1709333444988,-1253.16499399,0.00023999,2]
[316041740,1709333444998,-10257.97,0.00023999,2]
[316041742,1709333445007,-10257.97,0.00023999,2]
[316041744,1709333445017,-10257.97,0.00023999,2]
[316041746,1709333445026,-10257.97,0.00023999,2]
[316041747,1709333445035,-10257.97,0.00023999,2]
[316041749,1709333445044,-10257.97,0.00023999,2]
[316041751,1709333445053,-10257.97,0.00023999,2]
[316041753,1709333445063,-10257.97,0.00023999,2]
[316041755,1709333445072,-10257.97,0.00023999,2]
[316041757,1709333445081,-10257.97,0.00023999,2]
[316041759,1709333445090,-10257.97,0.00023999,2]
[316041760,1709333445099,-10257.97,0.00023999,2]
[316041762,1709333445109,-10257.97,0.00023999,2]
[316041764,1709333445119,-10257.97,0.00023999,2]
[316041765,1709333445128,-10257.97,0.00023999,2]
[316041767,1709333445138,-10257.97,0.00023999,2]
[316041768,1709333445148,-10257.97,0.00023999,2]
[316041769,1709333445158,-10258.20574546,0.00023999,2]
[316041770,1709333445167,-2250.0,0.00023999,2]
[316041771,1709333445176,-2250.0,0.00023999,2]
[316041772,1709333445186,-2250.0,0.00023999,2]
[316041773,1709333445195,-2250.0,0.00023999,2]
[316041774,1709333445204,-2250.0,0.00023999,2]
[316041775,1709333445214,-2250.0,0.00023999,2]
[316041776,1709333445223,-2250.0,0.00023999,2]
[316041777,1709333445233,-2250.0,0.00023999,2]
[316041778,1709333445243,-2250.0,0.00023999,2]
[316041779,1709333445252,-2250.0,0.00023999,2]
[316041780,1709333445261,-2250.0,0.00023999,2]
[316041781,1709333445352,-2250.0,0.00023999,2]
[316041782,1709333445362,-2250.0,0.00023999,2]
[316041783,1709333445372,-2250.14003786,0.00023999,2]
[316041784,1709333445381,-866.25,0.00023999,2]
[316041785,1709333445391,-866.25,0.00023999,2]
[316041786,1709333445400,-866.25,0.00023999,2]
[316041787,1709333445410,-866.25,0.00023999,2]
[316041788,1709333445420,-866.25,0.00023999,2]
[316041789,1709333445429,-866.25,0.00023999,2]
[316041790,1709333445438,-866.25,0.00023999,2]
[316041792,1709333445447,-866.25,0.00023999,2]
[316041793,1709333445456,-866.25,0.00023999,2]
[316041794,1709333445465,-866.25,0.00023999,2]
[316041795,1709333445474,-866.25,0.00023999,2]
[316041796,1709333445483,-866.25,0.00023999,2]
[316041797,1709333445492,-866.25,0.00023999,2]
[316041798,1709333445502,-866.32613509,0.00023999,2]
[316041799,1709333445510,-977.71,0.00023999,2]
[316041800,1709333445521,-977.71,0.00023999,2]
[316041801,1709333445530,-977.71,0.00023999,2]
[316041802,1709333445539,-977.71,0.00023999,2]
[316041803,1709333445549,-977.71,0.00023999,2]
[316041804,1709333445558,-977.71,0.00023999,2]
[316041805,1709333445568,-977.71,0.00023999,2]
[316041807,1709333445576,-977.71,0.00023999,2]
[316041808,1709333445585,-977.71,0.00023999,2]
[316041811,1709333445597,-977.71,0.00023999,2]
[316041812,1709333445606,-977.71,0.00023999,2]
[316041813,1709333445615,-977.71,0.00023999,2]
[316041814,1709333445624,-977.71,0.00023999,2]
[316041815,1709333445633,-977.80711065,0.00023999,2]
[316041816,1709333445643,-591.738319,0.00023999,2]
[316041817,1709333445652,-591.738319,0.00023999,2]
[316041818,1709333445662,-172583.2727953,0.00024,5]
[316041819,1709333445684,-795.25274607,0.00024,5]
[316041820,1709333445729,-1345.51479047,0.00024,5]
[316041821,1709333445783,-61045.76002839,0.00024,5]
[316041830,1709333446169,-155.05892239,0.00017888,2]
[316041831,1709333446178,-125.34107761,0.00020547,2]
[316042438,1709334638663,-1879.76552181,0.00019158,2]
[316042440,1709334638672,-155.06667867,0.00019158,2]
[316042442,1709334638682,-224.134094,0.00019159,2]
[316042444,1709334638691,-571.98264273,0.00019159,2]
[316042448,1709334638721,-3837.34050633,0.00019159,2]
[316042450,1709334638733,-20229.54243614,0.00019159,2]
[316042451,1709334638742,-160.1207913,0.00019916,2]
[316042452,1709334638752,-21010.15389796,0.0002,2]
[316042454,1709334638761,-2204.2906974,0.0002,2]
[316042456,1709334638770,-2958.11858042,0.0002,2]
[316042457,1709334638779,-1753.86042697,0.0002,2]
[316042458,1709334638788,-238.53127687,0.00020049,2]
[316042459,1709334638797,-626.06990911,0.0002005,6]
[316042460,1709334638806,-2609.69,0.00020537,3]
[316042462,1709334638815,-155.06202481,0.00020547,2]
[316042463,1709334638825,-500.0,0.00020547,2]
[316042464,1709334638834,-500.0,0.00020547,2]
[316042465,1709334638844,-467.42866008,0.00020547,2]
[316042466,1709334638854,-500.0,0.00020547,2]
[316042467,1709334638863,-500.0,0.00020547,2]
[316042468,1709334638876,-500.0,0.00020547,2]
[316042469,1709334638885,-500.0,0.00020547,2]
[316042470,1709334638894,-500.0,0.00020547,2]
[316042471,1709334638903,-2901.72,0.00020547,2]
[316042472,1709334638915,-1200.77,0.00020547,2]
[316042473,1709334638924,-1193.89,0.00020547,2]
[316042474,1709334638933,-502.81,0.00020547,2]
[316042475,1709334638942,-502.81,0.00020547,2]
[316042476,1709334638951,-500.0,0.00020547,2]
[316042477,1709334638962,-500.0,0.00020547,2]
[316042478,1709334638972,-10257.97,0.00020547,2]
[316042479,1709334638982,-10257.97,0.00020547,2]
[316042480,1709334638991,-10257.97,0.00020547,2]
[316042481,1709334639000,-10257.97,0.00020547,2]
[316042482,1709334639009,-10257.97,0.00020547,2]
[316042483,1709334639018,-500.0,0.00020547,2]
[316042484,1709334639027,-500.0,0.00020547,2]
[316042485,1709334639041,-500.0,0.00020547,2]
[316042486,1709334639051,-500.0,0.00020547,2]
[316042487,1709334639060,-500.0,0.00020547,2]
[316042488,1709334639070,-500.0,0.00020547,2]
[316042489,1709334639080,-500.0,0.00020547,2]
[316042490,1709334639089,-500.0,0.00020547,2]
[316042491,1709334639098,-500.0,0.00020547,2]
[316042492,1709334639107,-936.97,0.00020547,2]
[316042493,1709334639116,-500.0,0.00020547,2]
[316042494,1709334639125,-500.0,0.00020547,2]
[316042495,1709334639135,-500.0,0.00020547,2]
[316042496,1709334639144,-500.0,0.00020547,2]
[316042497,1709334639153,-500.0,0.00020547,2]
[316042498,1709334639162,-500.0,0.00020547,2]
[316042499,1709334639172,-500.0,0.00020547,2]
[316042500,1709334639181,-500.0,0.00020547,2]
[316042501,1709334639191,-500.0,0.00020547,2]
[316042502,1709334639200,-500.0,0.00020547,2]
[316042503,1709334639210,-500.0,0.00020547,2]
[316042504,1709334639219,-630.67326243,0.00020547,2]
[316042505,1709334639228,-500.0,0.00020547,2]
[316042506,1709334639237,-500.0,0.00020547,2]
[316042507,1709334639247,-500.0,0.00020547,2]
[316042508,1709334639255,-500.0,0.00020547,2]
[316042509,1709334639265,-500.0,0.00020547,2]
[316042510,1709334639274,-500.0,0.00020547,2]
[316042511,1709334639285,-500.0,0.00020547,2]
[316042512,1709334639294,-500.0,0.00020547,2]
[316042513,1709334639303,-500.0,0.00020547,2]
[316042514,1709334639312,-500.0,0.00020547,2]
[316042515,1709334639321,-500.0,0.00020547,2]
[316042516,1709334639330,-761.48,0.00020547,2]
[316042517,1709334639340,-761.48,0.00020547,2]
[316042518,1709334639349,-761.48,0.00020547,2]
[316042519,1709334639358,-761.48,0.00020547,2]
[316042520,1709334639367,-500.0,0.00020547,2]
[316042521,1709334639376,-500.0,0.00020547,2]
[316042522,1709334639385,-500.0,0.00020547,2]
[316042523,1709334639394,-500.0,0.00020547,2]
[316042524,1709334639402,-500.0,0.00020547,2]
[316042525,1709334639411,-500.0,0.00020547,2]
[316042526,1709334639420,-467.56881791,0.00020547,2]
[316042527,1709334639429,-500.0,0.00020547,2]
[316042528,1709334639438,-500.0,0.00020547,2]
[316042529,1709334639448,-2901.72,0.0002066,2]
[316042530,1709334639457,-1193.89,0.0002066,2]
[316042531,1709334639466,-500.0,0.0002066,2]
[316042532,1709334639475,-936.97,0.0002066,2]
[316042533,1709334639484,-500.0,0.0002066,2]
[316042534,1709334639492,-500.0,0.0002066,2]
[316042535,1709334639501,-500.0,0.0002066,2]
[316042536,1709334639511,-393.64682508,0.00020661,2]
[316042537,1709334639520,-10257.97,0.00020661,2]
[316042538,1709334639529,-502.81,0.00020699,2]
[316042539,1709334639538,-500.0,0.00020699,2]
[316042540,1709334639547,-500.0,0.00020699,2]
[316042541,1709334639556,-500.0,0.00020699,2]
[316042542,1709334639565,-500.0,0.00020699,2]
[316042543,1709334639574,-500.0,0.00020699,2]
[316042544,1709334639583,-336.95,0.00020699,2]
[316042545,1709334639592,-500.0,0.00020699,2]
[316042546,1709334639601,-500.0,0.00020699,2]